fUSD/lending_fUSD_20250220
["ID","MTS","AMOUNT","RATE_DAILY","PERIOD"]
[353762684,1740017439896,-643.15,0.00011212,2]
[353762686,1740017439906,-193.98,0.00011212,2]
[353762688,1740017439915,-500.0,0.00011234,2]
[353762690,1740017439924,-165.40619791,0.00011244,2]
[353762692,1740017439933,-154.62901719,0.00011244,2]
[353762694,1740017439943,-158.45815385,0.00011244,2]
[353762696,1740017439955,-151.66277317,0.00011244,2]
[353762698,1740017439964,-1000.0,0.00011325,2]
[353762700,1740017439973,-150.0,0.00011362,2]
[353762702,1740017439983,-577.27,0.00011372,2]
[353762704,1740017439992,-1707.94979397,0.00011443,2]
[353762706,1740017440004,-484.96166495,0.00011443,2]
[353762955,1740017442679,-567.33945125,0.00011443,2]
[353762961,1740017442730,-2251.34484798,0.00011443,2]
[353762963,1740017442740,-430.28,0.00011486,2]
[353762965,1740017442750,-1049.41,0.0001151,2]
[353762967,1740017442760,-250.0,0.00011531,2]
[353762969,1740017442773,-167.08,0.00011591,2]
[353762971,1740017442783,-184.04,0.00011682,2]
[353762973,1740017442792,-306.09,0.00011781,2]
[353763001,1740017443057,-868.34444034,0.00011821,2]
[353763253,1740017445566,-555.65555966,0.00011821,2]
[353763255,1740017445576,-505.35353121,0.00011998,2]
[353763257,1740017445586,-579.1299578,0.0001225,2]
[353763259,1740017445596,-150.0,0.0001225,2]
[353763261,1740017445605,-493.06,0.00012285,2]
[353763263,1740017445617,-277.71429831,0.000123,2]
[353763265,1740017445627,-158.15213505,0.000123,2]
[353763267,1740017445636,-652.32709161,0.00012313,2]
[353763269,1740017445645,-214.7383,0.0001239,2]
[353763271,1740017445655,-2019.80686723,0.000124,2]
[353763585,1740018514434,161.84442127,0.0002,120]
[353763586,1740018518820,361.51,8.767e-05,2]
[353763601,1740018631707,-1030.7,9.327e-05,2]
[353763602,1740018631717,-500.0,9.864e-05,2]
[353763603,1740018631726,-500.0,9.864e-05,2]
[353763604,1740018631735,-158.39720184,0.0001075,2]
[353763605,1740018631744,-500.0,0.0001085,2]
[353763606,1740018631754,-500.0,0.00010956,3]
[353763607,1740018631763,-4785.5,0.00010994,2]
[353763608,1740018631773,-550.0,0.00011,2]
[353763609,1740018631783,-306.01900117,0.00011,2]
[353763610,1740018631792,-884.43227828,0.00011,2]
[353763611,1740018631802,-387.64,0.00011038,2]
[353763612,1740018631811,-150.0,0.00011244,2]
[353763613,1740018631821,-150.0,0.00011244,2]
[353763614,1740018631831,-150.0,0.00011244,2]
[353763615,1740018631840,-150.90633389,0.00011244,2]
[353763616,1740018631850,-200.0,0.00011289,2]
[353763617,1740018631859,-492.72,0.00011438,2]
[353763618,1740018631868,-220.9497528,0.00011443,2]
[353763875,1740018639917,-281.7402472,0.00011443,2]
[353763877,1740018639927,-496.77,0.00011443,2]
[353763879,1740018639936,-503.13,0.00011443,2]
[353763881,1740018639945,-194.65650544,0.00011443,2]
[353763883,1740018639956,-309.60349456,0.00011443,2]
[353763885,1740018639966,-152.0,0.00011474,3]
[353763887,1740018639975,-2000.0,0.0001152,2]
[353763889,1740018639984,-347.67159066,0.00011529,2]
[353764136,1740018642712,-499.32,0.00011443,2]
[353764138,1740018642723,-652.32840934,0.00011529,2]
[353764140,1740018642732,-1030.7,0.00011591,2]
[353764142,1740018642741,-163.9,0.00011618,2]
[353764144,1740018642751,-152.0,0.00011642,4]
[353764146,1740018642761,-152.0,0.00011811,5]
[353764148,1740018642770,-500.0,0.00011918,2]
[353764150,1740018642779,-150.71,0.00011943,2]
[353764152,1740018642788,-152.0,0.0001198,6]
[353764154,1740018642798,-965.46,0.00012082,2]
[353764156,1740018642807,-152.0,0.00012149,7]
[353764158,1740018642816,-158.15213505,0.00012199,2]
[353764160,1740018642826,-150.0,0.00012199,2]
[353764161,1740018642835,-322.14309284,0.00012199,2]
[353764163,1740018642844,-386.0866385,0.0001225,2]
[353764165,1740018642854,-583.39526769,0.00012298,2]
[353764167,1740018642863,-262.14784536,0.00012298,3]
[353764169,1740018642872,-3197.42440453,0.00012299,3]
[353764174,1740018642912,-763.4354762,0.00012299,3]
[353764177,1740018642927,-512.00786555,0.00012299,3]
[353764500,1740018864689,-150.0,9.864e-05,2]
[353764501,1740018866314,-150.0,9.864e-05,2]
[353764502,1740018867540,-150.0,9.864e-05,2]
[353764503,1740018868811,-50.0,9.864e-05,2]
[353764504,1740018868833,-100.0,9.864e-05,2]
[353764505,1740018870446,-150.0,9.864e-05,2]
[353764506,1740018871928,-150.0,9.864e-05,2]
[353764507,1740018905232,-100.0,9.864e-05,2]
[353764508,1740018905258,-50.0,9.864e-05,2]
[353764509,1740018907444,-150.0,9.864e-05,2]
[353764510,1740018909452,-150.0,9.864e-05,2]
[353764511,1740018981009,-150.0,9.864e-05,2]
[353764512,1740018982272,-150.0,9.864e-05,2]
[353764513,1740018983853,-150.0,9.864e-05,2]
[353764514,1740018986288,-150.0,9.864e-05,2]
[353764515,1740019059154,-50.0,9.864e-05,2]
[353764516,1740019059178,-100.0,9.864e-05,2]
[353764517,1740019060747,-150.0,9.864e-05,2]
[353764518,1740019062162,-150.0,9.864e-05,2]
[353764519,1740019109500,-100.0,9.864e-05,2]
[353764520,1740019109524,-50.0,9.864e-05,2]
[353764521,1740019110771,-150.0,9.864e-05,2]
[353764522,1740019112000,-150.0,9.864e-05,2]
[353764523,1740019173754,-150.0,9.864e-05,2]
[353764524,1740019175059,-150.0,9.864e-05,2]
[353764525,1740019176515,-150.0,9.864e-05,2]
[353764526,1740019177896,-150.0,9.864e-05,2]
[353764527,1740019235420,-50.0,9.864e-05,2]
[353764528,1740019235446,-100.0,9.864e-05,2]
[353764529,1740019237247,-150.0,9.864e-05,2]
[353764530,1740019337819,-150.0,9.372e-05,2]
[353764531,1740019338894,-150.0,9.372e-05,2]
[353764532,1740019340026,-150.0,9.372e-05,2]
[353764533,1740019341273,-150.0,9.372e-05,2]
[353764534,1740019342614,-150.0,9.372e-05,2]
[353764535,1740019344007,-150.0,9.372e-05,2]
[353764536,1740019749604,-27.63,9.372e-05,2]
[353764537,1740019749629,-120.11575924,9.864e-05,2]
[353764538,1740019749651,-2.25424076,9.864e-05,2]
[353764539,1740019751720,-150.0,9.864e-05,2]
[353764540,1740019753271,-150.0,9.864e-05,2]
[353764541,1740019754554,-150.0,9.864e-05,2]
[353764550,1740019831821,-47.74575924,9.864e-05,2]
[353764551,1740019831832,-500.78,0.00010607,2]
[353764552,1740019831844,-503.63,0.00010681,2]
[353764553,1740019831853,-184.04,0.00010916,2]
[353764554,1740019831863,-502.09,0.00010925,2]
[353764555,1740019831872,-234.31424046,0.00011135,2]
[353764556,1740019831979,-269.42575954,0.00011135,2]
[353764557,1740019831989,-344.22,0.0001121,2]
[353764558,1740019831998,-150.0,0.00011244,2]
[353764559,1740019832007,-246.36,0.00011369,2]
[353764560,1740019832017,-1000.0,0.00011453,2]
[353764561,1740019832025,-1424.0,0.00011551,2]
[353764562,1740019832035,-492.73,0.00011552,2]
[353764563,1740019832044,-496.01,0.00011552,2]
[353764564,1740019832053,-687.49782931,0.00011636,2]
[353764565,1740019832065,-240.13217069,0.00011636,2]
[353764566,1740019832074,-352.29930943,0.00011688,2]
[353764567,1740019832085,-322.14309284,0.00012096,2]
[353764568,1740019832098,-1521.3172545,0.00012098,2]
[353764569,1740019832110,-3128.6827455,0.00012098,2]
[353764570,1740019832119,-262.14784535,0.00012196,3]
[353764571,1740019832128,-493.91825633,0.00012196,2]
[353764572,1740019832137,-1063.51714268,0.00012196,3]
[353764573,1740019832148,-88106.28571237,0.00012196,3]
[353764574,1740019832162,-13080.78915979,0.00012196,3]
[353764575,1740019832174,-22780.27281881,0.00012196,3]
[353765204,1740019839947,-1589.4,0.00012196,3]
[353765215,1740019840057,-5554.0,0.00012196,3]
[353765258,1740019840672,-900.00057974,0.00012196,3]
[353765456,1740019842889,-85271.96226608,0.00012196,3]
[353765457,1740019842994,-2041.39172018,0.00012196,3]
[353765458,1740019843050,-2137.81251286,0.00012196,3]
[353765459,1740019843061,-1600.8511071,0.00012196,3]
[353765460,1740019843072,-386.183,0.00012196,3]
[353765461,1740019843109,-27618.59636184,0.00012196,3]
[353765480,1740019845826,-689.30224355,0.00012196,3]
[353765481,1740019845838,-667.0816509,0.00012196,3]
[353765482,1740019845987,-2502.1756668,0.00012196,3]
[353765485,1740019883247,444.16105206,0.000205,120]
[353765491,1740020104622,422.0,0.000205,120]
[353765492,1740020165092,169.0,0.000205,120]
[353765493,1740020617324,-150.0,9.347e-05,2]
[353765494,1740020620059,-150.0,9.347e-05,2]
[353765495,1740020621390,-150.0,9.347e-05,2]
[353765496,1740020622498,-150.0,9.347e-05,2]
[353765497,1740020623658,-150.0,9.347e-05,2]
[353765499,1740020804338,203.04158848,0.000205,120]
[353765501,1740020867804,176.16,8.767e-05,2]
[353765510,1740021031961,-84.86,9.347e-05,2]
[353765511,1740021031971,-500.0,9.864e-05,2]
[353765512,1740021031980,-82.97262828,0.0001085,2]
[353765513,1740021032063,-417.02737172,0.0001085,2]
[353765514,1740021032073,-115.95348308,0.00011,2]
[353765515,1740021032084,-434.04651692,0.00011,2]
[353765516,1740021032094,-310.11,0.00011284,2]
[353765517,1740021032103,-261.99877968,0.00011319,2]
[353765518,1740021032118,-738.00122032,0.00011319,2]
[353765519,1740021032129,-246.36,0.00011328,2]
[353765520,1740021032140,-150.0,0.000114,2]
[353765521,1740021032151,-977.963,0.00011551,2]
[353765522,1740021032163,-439.19,0.00011578,2]
[353765523,1740021032174,-152.0,0.00011579,3]
[353765524,1740021032186,-834.86,0.0001161,2]
[353765525,1740021032197,-490.46,0.0001169,2]
[353765526,1740021032207,-300.0,0.000118,4]
[353765527,1740021032218,-152.0,0.00011854,4]
[353765528,1740021032227,-51.87007383,0.000119,4]
[353765529,1740021032240,-648.12992617,0.000119,4]
[353765530,1740021032250,-4.09382605,0.00011999,2]
[353765531,1740021032262,-295.90617395,0.00011999,2]
[353765532,1740021032274,-575.63078002,0.00012,2]
[353765533,1740021032287,-1424.36921998,0.00012,2]
[353765534,1740021032297,-2000.0,0.00012,2]
[353765535,1740021032308,-2072.32,0.00012054,2]
[353765536,1740021032319,-2250.0,0.00012096,2]
[353765537,1740021032330,-500.41,0.00012096,2]
[353765538,1740021032342,-505.42,0.00012096,2]
[353765539,1740021032352,-152.0,0.00012128,5]
[353765540,1740021032363,-257.3910923,0.00012151,2]
[353765541,1740021032374,-1195.83,0.00012163,2]
[353765542,1740021032385,-508.2,0.00012196,2]
[353765543,1740021032395,-492.73,0.00012196,2]
[353765544,1740021032406,-506.01,0.00012196,2]
[353765545,1740021032417,-194.64467849,0.00012196,2]
[353765546,1740021032428,-500.0,0.00012197,2]
[353765548,1740021032439,-198.0,0.000122,4]
[353765549,1740021032450,-198.0,0.000122,4]
[353765550,1740021032463,-500.0,0.00012279,2]
[353765551,1740021032474,-8697.863,0.00012299,2]
[353765552,1740021032486,-2072.32,0.00012328,2]
[353765554,1740021032496,-689.01058,0.00012329,2]
[353765556,1740021032507,-206.0,0.0001236,2]
[353765558,1740021032519,-500.0,0.00012361,2]
[353765560,1740021032530,-10247.55096733,0.0001239,2]
[353765563,1740021032542,-283.79719136,0.0001239,2]
[353765565,1740021032559,-2286.39691092,0.0001239,2]
[353765567,1740021032571,-29812.83020426,0.0001239,2]
[353765641,1740021036082,-72201.16832613,0.0001239,2]
[353765642,1740021036092,-241.31200176,0.00012399,2]
[353765643,1740021036102,-68014.61279767,0.000124,2]
[353765644,1740021036112,-169.07902406,0.000124,2]
[353765645,1740021036122,-200.0,0.000124,2]
[353765646,1740021036132,-159.27733395,0.000124,2]
[353765647,1740021036141,-158.91201711,0.000124,2]
[353765648,1740021036150,-1482.28130063,0.000124,2]
[353765649,1740021036160,-152.0,0.00012402,6]
[353765650,1740021036169,-4120.95248413,0.00012436,2]
[353765651,1740021036178,-500.0,0.00012444,2]
[353765652,1740021036188,-218.78864506,0.00012489,2]
[353765653,1740021036197,-677.53076292,0.00012489,2]
[353765654,1740021036206,-113843.90077191,0.0001249,2]
[353765655,1740021036215,-517.02001,0.0001249,2]
[353765656,1740021036224,-517.02001,0.0001249,2]
[353765657,1740021036233,-151.0,0.0001249,2]
[353765658,1740021036241,-151.0,0.0001249,2]
[353765659,1740021036251,-500.0,0.00012498,2]
[353765660,1740021036259,-500.0,0.00012498,2]
[353765661,1740021036269,-509.55983522,0.00012498,2]
[353765662,1740021036278,-500.0,0.00012498,2]
[353765663,1740021036287,-500.0,0.00012498,2]
[353765664,1740021036297,-500.0,0.00012498,2]
[353765665,1740021036307,-500.0,0.00012498,2]
[353765666,1740021036317,-500.0,0.00012498,2]
[353765667,1740021036326,-500.0,0.00012498,2]
[353765668,1740021036336,-647.78181588,0.00012498,2]
[353765669,1740021036347,-151.0,0.00012498,2]
[353765670,1740021036357,-2326.0,0.00012499,2]
[353765671,1740021036366,-453428.98291247,0.00012499,3]
[353765672,1740021036376,-729641.88892016,0.00012499,5]
[353765673,1740021036387,-738.28,0.00012499,5]
[353765674,1740021036399,-701.115,0.00012499,5]
[353765675,1740021036410,-1527.45052351,0.00012499,5]
[353765676,1740021036423,-61381.99363859,0.00012499,5]
[353765677,1740021036434,-301.09129853,0.00012499,5]
[353765678,1740021036445,-613.32961624,0.00012499,5]
[353765679,1740021036457,-255.97559429,0.00012499,5]
[353765680,1740021036467,-516.0,0.00012499,5]
[353765698,1740021037869,-322.14309284,0.00012399,2]
[353765700,1740021037879,-680.3838926,0.00012499,5]
[353765701,1740021037976,-33194.24571153,0.00012499,5]
[353765702,1740021038030,-9756.9991507,0.00012499,5]
[353765703,1740021038084,-720.9341478,0.00012499,5]
[353765704,1740021038139,-435.04859577,0.00012499,5]
[353765705,1740021038151,-318.46501115,0.00012499,5]
[353765754,1740021040332,-269.86,0.00012499,2]
[353765755,1740021040457,-1078.2000003,0.00012499,2]
[353765756,1740021040516,-749.9399997,0.00012499,2]
[353765757,1740021040527,-0.0665662,0.00012499,5]
[353765758,1740021040668,-2997.53108848,0.00012499,5]
[353765759,1740021040679,-975.08533207,0.00012499,5]
[353765760,1740021040691,-256.56664,0.00012499,5]
[353765786,1740021043173,-235.805109,0.00012436,2]
[353765788,1740021043183,-238.02068879,0.00012499,2]
[353765791,1740021043250,-264.63931121,0.00012499,2]
[353765792,1740021043260,-1717.0224475,0.00012499,5]
[353765793,1740021043408,-13589.8,0.00012499,5]
[353765796,1740021045985,-4155.98612081,0.00012499,5]
[353765797,1740021046039,-74926.53747959,0.00012499,5]
[353765798,1740021046052,-1254.00638111,0.00012499,5]
[353765799,1740021046063,-1928.45765913,0.00012499,5]
[353765800,1740021046145,-8696.81132569,0.00012499,5]
[353765801,1740021046199,-39662.98353137,0.00012499,5]
[353765802,1740021046210,-517.02001,0.00012499,2]
[353765803,1740021046220,-517.02001,0.00012499,2]
[353765804,1740021046229,-756.78,0.00012499,2]
[353765805,1740021046239,-151.0,0.00012499,2]
[353765806,1740021046248,-151.0,0.00012499,2]
[353765807,1740021046259,-1946.91311328,0.000125,2]
[353765808,1740021046269,-190.99597653,0.000125,5]
[353765809,1740021046282,-749.23544425,0.000125,5]
[353765810,1740021046359,-500.0,0.000125,5]
[353765811,1740021158415,180.0,0.00018,120]
[353765812,1740021159328,180.0,0.00020055,120]
[353765813,1740021203253,-150.0,9.864e-05,2]
[353765814,1740021205543,-150.0,9.864e-05,2]
[353765815,1740021206868,-150.0,9.864e-05,2]
[353765816,1740021657964,828.99,9.045e-05,2]
[353765817,1740021675890,1006.84,0.0002,120]
[353765818,1740021868688,-50.0,9.864e-05,2]
[353765819,1740021868713,-100.0,0.0001,2]
[353765820,1740021869829,-150.0,0.0001,2]
[353765821,1740021870833,-150.0,0.0001,2]
[353765822,1740021871851,-150.0,0.0001,2]
[353765823,1740021872953,-150.0,0.0001,2]
[353765824,1740021874051,-150.0,0.0001,2]
[353765825,1740021875124,-150.0,0.0001,2]
[353765827,1740021910491,375.64,8.767e-05,2]
[353765835,1740022232115,-583.16003553,9.864e-05,2]
[353765837,1740022232126,-500.1325196,9.973e-05,2]
[353765839,1740022232135,-150.0,9.999e-05,2]
[353765841,1740022232145,-165.58147916,9.999e-05,2]
[353765842,1740022232154,-500.0,9.999e-05,2]
[353765843,1740022232163,-500.0,9.999e-05,2]
[353765844,1740022232172,-500.0,9.999e-05,2]
[353765845,1740022232182,-158.75729128,9.999e-05,2]
[353765846,1740022232191,-278.32470777,9.999e-05,2]
[353765847,1740022232200,-500.0,9.999e-05,2]
[353765848,1740022232209,-383721.47114805,0.0001,2]
[353765849,1740022232221,-97077.81221387,0.0001,2]
[353765850,1740022232232,-1913.55693271,0.0001,2]
[353765851,1740022232244,-759.50035039,0.0001,2]
[353765852,1740022232255,-3758.32180999,0.0001,2]
[353765853,1740022232266,-337.06151267,0.0001,2]
[353765854,1740022232334,-5096.0,0.0001,2]
[353765855,1740022232346,-1959.9999998,0.0001,2]
[353765856,1740022232447,-189158.3157999,0.0001,2]
[353765857,1740022232459,-118857.53099546,0.0001,2]
[353765858,1740022232468,-300.0,0.0001,3]
[353765859,1740022232477,-103615.58654362,0.0001,2]
[353765869,1740022238051,-165.58147916,0.0001,2]
[353765870,1740022238061,-12219.27148976,0.0001,2]
[353765871,1740022238268,-20670.23853317,0.0001,2]
[353765872,1740022238378,-560844.0354139,0.0001,2]
[353765873,1740022238388,-64337.54474763,0.0001,2]
[353765874,1740022238399,-5007.73859135,0.0001,2]
[353765875,1740022238409,-463.85,0.00010799,2]
[353765876,1740022238417,-500.0,0.0001085,2]
[353765877,1740022238426,-150.0,0.0001085,2]
[353765878,1740022238435,-14047.59,0.00010867,2]
[353765879,1740022238445,-486.22,0.00010887,2]
[353765880,1740022238456,-174.06,0.00010918,2]
[353765881,1740022238465,-500.0,0.00010958,2]
[353765882,1740022238476,-503.40936736,0.00010958,2]
[353765883,1740022238486,-494.19807051,0.00010958,2]
[353765884,1740022238495,-288.04856593,0.00010958,2]
[353765885,1740022238504,-151.69,0.00010988,2]
[353765886,1740022238515,-550.0,0.00011,2]
[353765887,1740022238524,-500.0,0.00011041,2]
[353765888,1740022238534,-150.0,0.00011057,2]
[353765889,1740022238543,-209.70786529,0.000111,2]
[353765890,1740022238553,-500.0,0.00011123,2]
[353765891,1740022238563,-170.22,0.0001114,2]
[353765892,1740022238572,-500.0,0.00011205,2]
[353765893,1740022238582,-1000.0,0.00011218,2]
[353765894,1740022238591,-150.0,0.00011244,2]
[353765895,1740022238599,-150.0,0.00011244,2]
[353765896,1740022238609,-150.81391421,0.00011244,2]
[353765897,1740022238618,-150.0,0.00011244,2]
[353765898,1740022238627,-150.0,0.00011244,2]
[353765899,1740022238638,-150.0,0.0001126,2]
[353765900,1740022238647,-150.0,0.00011275,2]
[353765901,1740022238657,-500.0,0.00011287,2]
[353765902,1740022238667,-150.0,0.00011291,2]
[353765903,1740022238676,-150.0,0.00011301,2]
[353765904,1740022238685,-150.0,0.00011307,2]
[353765905,1740022238694,-828.99,0.00011309,2]
[353765906,1740022238704,-150.0,0.0001131,2]
[353765907,1740022238714,-150.0,0.00011323,2]
[353765908,1740022238724,-674.04,0.00011325,2]
[353765909,1740022238734,-150.0,0.00011339,2]
[353765910,1740022238743,-150.0,0.00011355,2]
[353765911,1740022238753,-150.0,0.00011357,2]
[353765912,1740022238762,-167.9,0.00011363,2]
[353765913,1740022238771,-500.0,0.00011369,2]
[353765914,1740022238779,-150.0,0.0001137,2]
[353765915,1740022238789,-150.0,0.00011375,2]
[353765916,1740022238799,-150.0,0.00011386,2]
[353765917,1740022239010,-1496.56,0.00011397,2]
[353765918,1740022239020,-150.0,0.000114,2]
[353765919,1740022239030,-150.0,0.00011402,2]
[353765920,1740022239039,-150.0,0.00011414,2]
[353765921,1740022239048,-150.0,0.00011418,2]
[353765922,1740022239058,-197.54,0.0001143,2]
[353765923,1740022239067,-150.0,0.00011434,2]
[353765924,1740022239076,-150.0,0.00011441,2]
[353765925,1740022239085,-150.0,0.00011449,2]
[353765926,1740022239094,-500.0,0.00011452,2]
[353765927,1740022239103,-454.03,0.00011462,2]
[353765928,1740022239112,-150.0,0.00011465,2]
[353765929,1740022239122,-150.0,0.00011471,2]
[353765930,1740022239134,-150.0,0.00011481,2]
[353765931,1740022239143,-150.0,0.00011497,2]
[353765932,1740022239152,-166.73,0.00011499,2]
[353765933,1740022239162,-150.0,0.00011507,2]
[353765934,1740022239171,-150.0,0.00011513,2]
[353765935,1740022239181,-150.0,0.00011528,2]
[353765936,1740022239190,-150.0,0.00011528,2]
[353765937,1740022239199,-500.0,0.00011534,2]
[353765938,1740022239206,-150.0,0.00011544,2]
[353765939,1740022239217,-1797.625,0.00011551,2]
[353765940,1740022239227,-914.178,0.00011551,2]
[353765941,1740022239236,-788.0,0.00011551,2]
[353765942,1740022239246,-1274.07,0.00011551,2]
[353765943,1740022239256,-1539.54,0.00011551,2]
[353765944,1740022239266,-541.735,0.00011551,2]
[353765945,1740022239276,-4054.896,0.00011551,2]
[353765946,1740022239286,-1116.34,0.00011551,2]
[353765947,1740022239296,-151.667,0.00011551,2]
[353765948,1740022239305,-3955.388,0.00011551,2]
[353765949,1740022239315,-1281.302,0.00011551,2]
[353765950,1740022239324,-2038.632,0.00011551,2]
[353765951,1740022239333,-1019.496,0.00011551,2]
[353765952,1740022239343,-150.0,0.00011556,2]
[353765953,1740022239354,-150.0,0.0001156,2]
[353765954,1740022239368,-150.0,0.00011573,2]
[353765955,1740022239377,-150.0,0.00011576,2]
[353765956,1740022239387,-150.0,0.00011585,2]
[353765957,1740022239398,-150.0,0.00011592,2]
[353765958,1740022239408,-150.0,0.00011608,2]
[353765959,1740022239417,-166.73,0.00011614,2]
[353765960,1740022239427,-500.0,0.00011616,2]
[353765961,1740022239437,-150.0,0.00011623,2]
[353765962,1740022239447,-150.0,0.00011638,2]
[353765963,1740022239457,-150.0,0.00011639,2]
[353765964,1740022239467,-150.0,0.00011641,2]
[353765965,1740022239477,-150.0,0.00011655,2]
[353765966,1740022239486,-150.0,0.00011671,2]
[353765967,1740022239496,-150.0,0.00011687,2]
[353765968,1740022239505,-474.11867697,0.00011698,2]
[353765969,1740022239514,-150.0,0.00011698,2]
[353765970,1740022239523,-600.0,0.000117,4]
[353765971,1740022239533,-150.0,0.00011702,2]
[353765972,1740022239543,-150.0,0.00011704,2]
[353765973,1740022239553,-150.0,0.00011712,2]
[353765974,1740022239561,-150.0,0.00011718,2]
[353765975,1740022239571,-166.73,0.00011729,2]
[353765976,1740022239580,-150.0,0.00011734,2]
[353765977,1740022239590,-150.0,0.0001175,2]
[353765978,1740022239599,-150.0,0.00011755,2]
[353765979,1740022239609,-150.0,0.00011766,2]
[353765980,1740022239619,-150.0,0.0001177,2]
[353765981,1740022239628,-150.0,0.00011782,2]
[353765982,1740022239638,-190.57,0.00011786,2]
[353765983,1740022239647,-150.0,0.00011797,2]
[353765984,1740022239657,-900.0,0.000118,4]
[353765985,1740022239667,-150.0,0.00011812,2]
[353765986,1740022239676,-150.0,0.00011813,2]
[353765987,1740022239685,-150.0,0.00011829,2]
[353765988,1740022239695,-150.0,0.00011836,2]
[353765989,1740022239705,-150.0,0.00011845,2]
[353765990,1740022239714,-150.0,0.00011847,2]
[353765991,1740022239723,-150.0,0.00011861,2]
[353765992,1740022239733,-150.0,0.00011868,2]
[353765993,1740022239742,-150.0,0.00011868,2]
[353765994,1740022239752,-150.0,0.00011876,2]
[353765995,1740022239763,-150.0,0.00011892,2]
[353765996,1740022239772,-1200.0,0.000119,4]
[353765997,1740022239782,-150.0,0.00011901,2]
[353765998,1740022239791,-150.0,0.00011908,2]
[353765999,1740022239800,-150.0,0.00011924,2]
[353766000,1740022239810,-150.0,0.00011925,2]
[353766001,1740022239819,-150.0,0.0001194,2]
[353766002,1740022239829,-150.0,0.00011955,2]
[353766003,1740022239839,-150.0,0.00011967,2]
[353766004,1740022239849,-150.0,0.00011971,2]
[353766005,1740022239858,-150.0,0.00011982,2]
[353766006,1740022239867,-150.0,0.00011987,2]
[353766007,1740022239877,-167.9,0.00011988,2]
[353766008,1740022239886,-150.0,0.00012003,2]
[353766009,1740022239895,-150.0,0.00012019,2]
[353766010,1740022239905,-150.0,0.00012025,2]
[353766011,1740022239914,-150.0,0.00012033,2]
[353766012,1740022239924,-150.0,0.00012035,2]
[353766013,1740022239933,-150.0,0.00012039,2]
[353766014,1740022239942,-150.0,0.0001205,2]
[353766015,1740022239952,-1899.62,0.00012054,2]
[353766016,1740022239961,-150.0,0.00012066,2]
[353766017,1740022239971,-150.0,0.00012082,2]
[353766019,1740022239980,-150.0,0.00012096,2]
[353766021,1740022239990,-150.0,0.00012098,2]
[353766022,1740022239999,-150.0,0.00012099,2]
[353766023,1740022240008,-150.0,0.00012114,2]
[353766024,1740022240018,-150.0,0.00012129,2]
[353766025,1740022240027,-150.0,0.00012145,2]
[353766026,1740022240037,-150.0,0.00012152,2]
[353766027,1740022240047,-150.0,0.00012161,2]
[353766028,1740022240057,-150.0,0.00012164,2]
[353766029,1740022240066,-150.0,0.00012177,2]
[353766030,1740022240076,-150.0,0.00012181,2]
[353766032,1740022240085,-150.0,0.00012193,2]
[353766034,1740022240095,-150.0,0.00012208,2]
[353766036,1740022240104,-150.0,0.00012209,2]
[353766037,1740022240113,-150.0,0.00012224,2]
[353766038,1740022240123,-150.0,0.0001223,2]
[353766039,1740022240132,-150.0,0.0001224,2]
[353766040,1740022240142,-247.8806924,0.0001225,2]
[353766041,1740022240151,-150.0,0.00012256,2]
[353766042,1740022240161,-150.0,0.00012266,2]
[353766043,1740022240171,-150.0,0.00012272,2]